bitfinex/quotes_SOLUSD_20251025
["timestamp","ask_amount","ask_price","bid_price","bid_amount"]
[1761376301181,18.00994974,194.23,194.21,35.58]
[1761376301381,16.18351898,194.23,194.21,35.58]
[1761376301895,21.33205705,194.23,194.19,0.72]
[1761376302084,21.33205705,194.23,194.2,35.58]
[1761376302479,0.72,194.22,194.2,35.58]
[1761376303711,20.61205705,194.23,194.2,36.3]
[1761376303913,21.33205705,194.23,194.2,36.3]
[1761376305010,20.61205705,194.23,194.2,35.58]
[1761376305223,0.72,194.22,194.2,35.58]
[1761376305913,21.33205705,194.23,194.2,35.58]
[1761376306208,0.72,194.22,194.2,35.58]
[1761376309212,2.54643076,194.21,194.16,0.1]
[1761376309393,2.54643076,194.18,194.16,35.68]
[1761376309792,3.25643076,194.18,194.16,35.68]
[1761376309994,18.0139361,194.18,194.16,35.68]
[1761376310189,2.54643076,194.17,194.16,35.68]
[1761376312091,3.25643076,194.17,194.16,35.68]
[1761376312811,2.34077427,194.17,194.16,35.68]
[1761376315206,1.63077427,194.17,194.16,35.68]
[1761376319602,17.80827961,194.18,194.16,35.68]
[1761376320008,17.77827961,194.18,194.16,35.68]
[1761376320719,0.68,194.21,194.17,0.72]
[1761376320918,2.31077427,194.21,194.17,0.72]
[1761376321225,2.31077427,194.21,194.16,35.68]
[1761376321226,1.63077427,194.19,194.16,35.68]
[1761376321524,1.63077427,194.18,194.16,35.68]
[1761376321923,1.63077427,194.18,194.16,36.4]
[1761376323120,2.31077427,194.19,194.16,0.82]
[1761376323323,2.31077427,194.19,194.17,35.58]
[1761376325017,1.63077427,194.19,194.18,0.72]
[1761376325215,6.78024738,194.2,194.18,0.72]
[1761376325508,0.68,194.21,194.17,36.3]
[1761376325823,0.68,194.2,194.17,36.3]
[1761376326123,2.31077427,194.21,194.17,35.58]
[1761376326327,2.31077427,194.21,194.18,0.72]
[1761376327010,7.45985938,194.21,194.17,36.3]
[1761376327719,7.45985938,194.21,194.18,0.72]
[1761376330111,5.14908511,194.21,194.18,0.72]
[1761376331328,29.65961427,194.22,194.18,0.72]
[1761376331509,7.45961427,194.22,194.18,0.72]
[1761376331713,2.31077427,194.22,194.18,0.72]
[1761376331932,2.31077427,194.22,194.18,5.8698588]
[1761376332333,2.31077427,194.22,194.19,0.72]
[1761376332522,2.31077427,194.22,194.2,35.58]
[1761376335932,1.63077427,194.21,194.2,35.58]
[1761376340538,2.31077427,194.22,194.2,35.58]
[1761376341441,1.63077427,194.22,194.21,0.68]
[1761376342032,1.63077427,194.22,194.2,35.58]
[1761376342232,1.63077427,194.22,194.2,36.26]
[1761376342845,2.34077427,194.22,194.2,35.58]
[1761376345051,7.48963098,194.22,194.2,35.58]
[1761376345447,6.77963098,194.22,194.2,35.58]
[1761376345649,0.71,194.21,194.2,35.58]
[1761376345823,6.77963098,194.22,194.2,35.58]
[1761376346030,7.48963098,194.22,194.2,35.58]
[1761376351650,5.14857152,194.23,194.2,35.58]
[1761376351955,2.34077427,194.23,194.2,36.26]
[1761376352253,7.48939699,194.23,194.2,35.58]
[1761376352754,7.48939699,194.23,194.2,36.26]
[1761376354571,5.14862272,194.23,194.2,36.26]
[1761376354853,130.53357688,194.25,194.2,36.26]
[1761376354854,109.68898992,194.25,194.21,0.68]
[1761376355030,0.71,194.24,194.21,0.68]
[1761376355447,2.34077427,194.24,194.21,0.68]
[1761376356252,1.63077427,194.24,194.2,35.58]
[1761376356443,0.71,194.23,194.2,35.58]
[1761376356644,5.85871364,194.23,194.2,35.58]
[1761376356851,5.85871364,194.23,194.2,36.26]
[1761376357032,2.34077427,194.22,194.2,35.58]
[1761376357633,1.63077427,194.22,194.2,35.58]
[1761376357846,7.48948791,194.23,194.2,36.26]
[1761376359155,6.77948791,194.23,194.2,36.26]
[1761376359339,7.48948791,194.23,194.2,36.26]
[1761376361658,5.85871364,194.23,194.2,36.26]
[1761376361861,5.14871364,194.23,194.2,36.26]
[1761376362164,5.14871364,194.23,194.21,0.68]
[1761376362348,5.14871364,194.23,194.2,36.26]
[1761376362751,5.85871364,194.23,194.2,36.26]
[1761376363060,5.14871364,194.23,194.2,36.26]
[1761376363768,5.85871364,194.23,194.2,36.26]
[1761376364665,2.34077427,194.22,194.2,35.58]
[1761376365170,0.71,194.21,194.2,35.58]
[1761376368963,0.71,194.22,194.2,35.58]
[1761376369167,5.14853524,194.23,194.2,36.26]
[1761376369344,5.14853524,194.23,194.21,0.68]
[1761376371174,5.14833317,194.24,194.21,0.68]
[1761376373160,20.61185215,194.24,194.21,0.68]
[1761376376568,21.31185215,194.24,194.21,0.68]
[1761376377060,23.85817584,194.24,194.21,0.68]
[1761376377382,23.85817584,194.24,194.2,35.58]
[1761376377750,23.15817584,194.24,194.2,35.58]
[1761376378062,3.24632369,194.23,194.2,36.26]
[1761376379683,8.39495442,194.23,194.2,36.26]
[1761376380582,5.84863073,194.23,194.2,36.26]
[1761376381180,8.39495442,194.23,194.2,36.26]
[1761376381565,8.39495442,194.23,194.2,35.58]
[1761376382766,23.8584734,194.23,194.2,35.58]
[1761376384202,3.20632369,194.22,194.2,35.58]
[1761376384367,2.54632369,194.21,194.2,35.56]
[1761376384679,3.20632369,194.21,194.2,35.56]
[1761376384886,0.66,194.21,194.2,35.56]
[1761376386180,20.61316772,194.22,194.2,36.23]
[1761376386372,15.46431609,194.22,194.2,36.23]
[1761376388286,15.46431609,194.22,194.2,35.56]
[1761376389185,15.46431609,194.22,194.2,36.23]
[1761376391689,15.46431609,194.22,194.2,35.56]
[1761376394597,0.66,194.22,194.2,35.56]
[1761376396298,7.6948059,194.24,194.2,35.56]
[1761376396496,0.66,194.23,194.2,36.23]
[1761376397376,20.61200119,194.24,194.21,0.67]
[1761376398199,21.27200119,194.24,194.21,0.67]
[1761376399994,20.61200119,194.24,194.21,0.67]
[1761376400207,0.72,194.28,194.22,2.54632369]
[1761376400387,0.72,194.28,194.23,35.56]
[1761376400589,16.181925,194.28,194.23,36.25]
[1761376400891,16.181925,194.28,194.24,0.69]
[1761376401091,15.461925,194.28,194.24,0.69]
[1761376401287,0.72,194.28,194.24,3.23632369]
[1761376401689,0.72,194.28,194.25,0.69]
[1761376401901,0.72,194.28,194.26,35.56]
[1761376405707,5.14694528,194.29,194.27,0.69]
[1761376406289,5.14694528,194.29,194.26,36.25]
[1761376407299,108.06671529,194.3,194.26,35.56]
[1761376407506,107.34671529,194.3,194.26,36.25]
[1761376407693,0.72,194.29,194.26,36.25]
[1761376409708,107.34671529,194.3,194.27,0.69]
[1761376410004,5.86703716,194.29,194.26,35.56]
[1761376410390,3.26632369,194.28,194.26,35.56]
[1761376411706,0.72,194.27,194.26,35.56]
[1761376412810,6.41336085,194.29,194.26,35.56]
[1761376414620,120.20585835,194.3,194.26,35.56]
[1761376414919,107.34669645,194.3,194.27,0.69]
[1761376415090,122.80623111,194.3,194.28,35.54]
[1761376415593,123.52623111,194.3,194.28,35.54]
[1761376416013,126.0725548,194.3,194.28,35.54]
[1761376416219,5.86694528,194.29,194.28,35.54]
[1761376420429,5.86694528,194.29,194.25,16.14953466]
[1761376420724,8.41326897,194.29,194.26,36.23]
[1761376421024,23.87439711,194.29,194.26,36.23]
[1761376422823,102.92,194.3,194.26,35.54]
[1761376423119,16.18033136,194.29,194.26,35.54]
[1761376423301,16.18033136,194.29,194.26,36.23]
[1761376423500,15.46033136,194.29,194.26,36.23]
[1761376424624,20.60735522,194.29,194.26,36.23]
[1761376425728,21.32735522,194.29,194.26,36.23]
[1761376425907,20.60735522,194.29,194.26,36.23]
[1761376426926,20.60735522,194.29,194.27,0.69]
[1761376427926,15.46033136,194.29,194.27,0.69]
[1761376428626,5.14646086,194.31,194.27,0.69]
[1761376429012,20.60519891,194.31,194.27,0.69]
[1761376432430,5.14646086,194.31,194.27,0.69]
[1761376433136,5.80646086,194.31,194.27,0.69]
[1761376433334,8.35278455,194.31,194.27,0.69]
[1761376434920,5.14646086,194.31,194.27,0.69]
[1761376437039,5.80646086,194.31,194.27,0.69]
[1761376437825,7.43499618,194.31,194.27,0.69]
[1761376438326,5.80646086,194.31,194.27,0.69]
[1761376438825,5.86678322,194.3,194.27,0.69]
[1761376439141,5.14678322,194.3,194.27,0.69]
[1761376448050,5.14641552,194.31,194.27,0.69]
[1761376449053,5.86677068,194.3,194.27,0.69]
[1761376449350,5.86677068,194.3,194.26,35.54]
[1761376449546,0.72,194.29,194.26,35.54]
[1761376449954,0.72,194.29,194.26,36.24]
[1761376450650,5.14641552,194.31,194.26,36.24]
[1761376450850,5.86641552,194.31,194.27,0.7]
[1761376451347,0.72,194.3,194.27,0.7]
[1761376451846,5.8667996,194.3,194.27,0.7]
[1761376453053,5.8667996,194.3,194.26,35.54]
[1761376453242,5.8667996,194.3,194.26,36.24]
[1761376455250,5.8667996,194.3,194.26,35.54]
[1761376455456,5.14641552,194.31,194.27,0.7]
[1761376455657,5.86641552,194.31,194.27,0.7]
[1761376455859,0.72,194.3,194.27,0.7]
[1761376457252,5.86683397,194.3,194.27,0.7]
[1761376461267,5.14641552,194.31,194.27,0.7]
[1761376461570,5.79641552,194.31,194.27,0.7]
[1761376463568,5.14641552,194.31,194.27,0.7]
[1761376464347,5.79641552,194.31,194.27,0.7]
[1761376467177,6.77495084,194.31,194.27,0.7]
[1761376467375,0.65,194.3,194.26,35.54]
[1761376467672,2.27853532,194.3,194.27,35.54]
[1761376468259,0.65,194.3,194.26,0.7]
[1761376468450,0.65,194.3,194.28,35.54]
[1761376468665,5.79694055,194.3,194.28,35.54]
[1761376471663,6.77547587,194.3,194.28,35.54]
[1761376472475,7.42547587,194.3,194.28,35.54]
[1761376475079,6.77547587,194.3,194.28,35.54]
[1761376475280,7.42547587,194.3,194.28,35.54]
[1761376476075,5.79694055,194.3,194.28,35.54]
[1761376478477,5.14694055,194.3,194.28,35.54]
[1761376478778,5.79694055,194.3,194.28,35.54]
[1761376479982,5.14694055,194.3,194.28,36.24]
[1761376481874,22.88,194.32,194.29,0.7]
[1761376482556,28.02627088,194.32,194.29,0.7]
[1761376482763,22.88,194.32,194.29,0.7]
[1761376483371,28.02621611,194.32,194.29,0.7]
[1761376487686,22.88,194.32,194.29,0.7]
[1761376492986,38.33714506,194.32,194.29,0.7]
[1761376493378,15.45714506,194.32,194.29,0.7]
[1761376494092,20.6033265,194.32,194.29,0.7]
[1761376496070,22.23186182,194.32,194.29,0.7]
[1761376498702,23.14766053,194.32,194.29,0.7]
[1761376498905,20.6033265,194.32,194.29,0.7]
[1761376499101,23.14766053,194.32,194.29,0.7]
[1761376500311,7.69051547,194.32,194.29,0.7]
[1761376500605,15.45714506,194.31,194.29,0.7]
[1761376506604,2.54433403,194.33,194.29,0.7]
[1761376506806,15.45714506,194.32,194.29,0.7]
[1761376506983,7.69030167,194.33,194.29,0.7]
[1761376507183,5.14596764,194.33,194.29,0.7]
[1761376507383,20.6031127,194.33,194.29,0.7]
[1761376508902,15.45714506,194.33,194.29,5.84686831]
[1761376509084,127.62433403,194.35,194.29,5.84686831]
[1761376509281,127.62433403,194.35,194.3,0.65]
[1761376509483,15.45634869,194.34,194.31,35.52]
[1761376510098,21.32197516,194.34,194.31,36.17]
[1761376512891,15.45634869,194.34,194.31,35.52]
[1761376513087,15.45634869,194.34,194.32,0.65]
[1761376516407,2.38374949,194.34,194.32,0.65]
[1761376526395,109.88971725,194.35,194.32,0.65]
[1761376526601,126.03526965,194.35,194.32,0.65]
[1761376528810,123.49093562,194.35,194.32,0.65]
[1761376529427,108.03538322,194.35,194.32,0.65]
[1761376529627,102.89,194.35,194.32,0.65]
[1761376530122,102.89,194.35,194.33,2.54433403]
[1761376530123,102.2,194.35,194.33,2.54433403]
[1761376530421,15.45236807,194.39,194.34,35.52]
[1761376530626,15.45236807,194.39,194.34,36.22]
[1761376530627,18.6867021,194.39,194.34,36.22]
[1761376530805,2.54433403,194.39,194.35,0.7]
[1761376531006,0.69,194.38,194.35,0.7]
[1761376531605,16.14236807,194.38,194.35,0.7]
[1761376532004,15.45236807,194.38,194.35,0.7]
[1761376537931,16.14236807,194.38,194.35,0.7]
[1761376538133,0.69,194.37,194.34,35.52]
[1761376538721,16.14316403,194.37,194.34,35.52]
[1761376540536,16.14316403,194.37,194.33,0.7]
[1761376540740,16.14316403,194.37,194.34,35.52]
[1761376542023,16.14316403,194.37,194.34,36.22]
[1761376543034,16.14316403,194.37,194.34,35.52]
[1761376543618,15.45316403,194.37,194.32,0.7]
[1761376543820,0.69,194.36,194.33,35.52]
[1761376544331,5.83475639,194.36,194.33,36.22]
[1761376544512,5.14475639,194.36,194.33,36.22]
[1761376544912,5.14475639,194.36,194.33,35.52]
[1761376545112,5.14475639,194.36,194.34,0.7]
[1761376546039,5.14475639,194.36,194.33,35.52]
[1761376546237,5.14475639,194.36,194.33,36.22]
[1761376547338,12.83419917,194.36,194.31,5.14475639]
[1761376547545,2.54433403,194.34,194.28,5.14721021]
[1761376547722,0.69,194.35,194.29,36.2]
[1761376547723,2.54433403,194.33,194.29,36.2]
[1761376548034,13.52419917,194.33,194.29,36.2]
[1761376548241,13.52419917,194.33,194.3,0.7]
[1761376548536,2.54433403,194.34,194.3,0.7]
[1761376548737,15.45634869,194.32,194.3,0.7]
[1761376552945,8.35999646,194.34,194.3,0.7]
[1761376553331,15.45634869,194.33,194.3,0.7]
[1761376554434,23.14657652,194.33,194.29,35.5]
[1761376554761,23.81657652,194.33,194.29,35.5]
[1761376554940,8.36022783,194.33,194.3,0.71]
[1761376555141,15.45634869,194.32,194.3,0.71]
[1761376555446,7.69022783,194.33,194.3,0.71]
[1761376555743,15.45634869,194.35,194.3,5.85660576]
[1761376555945,3.21433403,194.36,194.3,5.85660576]
[1761376556136,3.21433403,194.36,194.31,0.71]
[1761376556338,15.45634869,194.35,194.32,35.52]
[1761376556746,16.12634869,194.35,194.32,36.23]
[1761376557350,5.81536372,194.35,194.32,36.23]
[1761376557750,15.45634869,194.34,194.32,36.23]
[1761376561558,15.45634869,194.34,194.32,36.19]
[1761376562463,15.45634869,194.34,194.33,0.67]
[1761376562773,22.88,194.37,194.33,0.67]
[1761376562941,15.45396007,194.36,194.33,0.67]
[1761376563339,23.55,194.37,194.33,0.67]
[1761376563746,39.00396007,194.37,194.33,0.67]
[1761376563959,39.00396007,194.37,194.33,5.81585999]
[1761376564161,39.00396007,194.37,194.34,0.67]
[1761376564162,38.33396007,194.37,194.34,0.67]
[1761376564460,15.45396007,194.37,194.35,35.52]
[1761376564960,15.45396007,194.37,194.36,0.67]
[1761376565556,102.2,194.38,194.36,0.67]
[1761376565858,117.65316403,194.38,194.36,0.67]
[1761376567149,102.2,194.38,194.36,0.67]
[1761376572762,102.2,194.38,194.35,35.52]
[1761376572971,0.67,194.37,194.36,35.5]
[1761376573351,108.97238917,194.38,194.36,35.5]
[1761376573352,125.09475724,194.38,194.36,35.5]
[1761376573660,119.95017009,194.38,194.36,35.5]
[1761376575064,118.32236807,194.38,194.36,35.5]
[1761376575267,119.95017009,194.38,194.36,35.5]
[1761376581963,104.49780202,194.38,194.36,35.5]
[1761376582473,103.82780202,194.38,194.36,35.5]
[1761376583275,104.48780202,194.38,194.36,35.5]
[1761376584263,102.86,194.38,194.36,35.5]
[1761376584576,119.94017009,194.38,194.36,35.5]
[1761376584802,119.94017009,194.38,194.36,36.19]
[1761376584803,103.82780202,194.38,194.36,36.19]
[1761376584968,102.2,194.38,194.36,36.19]
[1761376585275,102.2,194.38,194.37,0.69]
[1761376585473,102.2,194.38,194.36,35.5]
[1761376585654,102.2,194.38,194.36,36.19]
[1761376585855,102.86,194.38,194.37,35.5]
[1761376586054,102.2,194.38,194.37,35.5]
[1761376589278,15.45157219,194.39,194.37,35.5]
[1761376589474,16.11157219,194.39,194.37,35.5]
[1761376590968,0.66,194.39,194.37,35.5]
[1761376591376,22.22341837,194.4,194.37,35.5]
[1761376591584,7.43184618,194.4,194.37,36.19]
[1761376591771,0.66,194.39,194.37,35.5]
[1761376591971,16.11157219,194.39,194.37,35.5]
[1761376592484,15.45157219,194.39,194.37,35.5]
[1761376593187,15.45157219,194.39,194.37,36.19]
[1761376593388,5.80404416,194.4,194.37,36.19]
[1761376593590,15.45157219,194.39,194.37,36.19]
[1761376593887,5.80404416,194.4,194.37,36.19]
[1761376594061,15.45157219,194.39,194.37,36.19]
[1761376595287,15.45157219,194.39,194.38,0.69]
[1761376595485,5.14404416,194.4,194.38,0.69]
[1761376595678,20.59561635,194.4,194.38,0.69]
[1761376602093,5.14404416,194.4,194.38,0.69]
[1761376603990,43.47458762,194.41,194.38,0.69]
[1761376605092,15.4507764,194.41,194.38,0.69]
[1761376605278,6.00353961,194.42,194.38,0.69]
[1761376605479,21.45352029,194.42,194.38,0.69]
[1761376606892,20.79352029,194.42,194.38,0.69]
[1761376607099,0.2,194.42,194.38,7.46234105]
[1761376607479,0.2,194.42,194.39,0.69]
[1761376607699,0.2,194.42,194.4,35.5]
[1761376607882,0.2,194.42,194.41,0.69]
[1761376608399,0.2,194.42,194.41,7.46157034]
[1761376609299,0.2,194.42,194.41,9.52093142]
[1761376613090,0.2,194.42,194.41,7.46157034]
[1761376615989,0.2,194.42,194.41,42.96157034]
[1761376622698,0.2,194.42,194.41,43.87340551]
[1761376622906,0.2,194.42,194.41,66.75340551]
[1761376623293,0.2,194.42,194.41,68.81266057]
[1761376626515,0.2,194.42,194.41,66.75340551]
[1761376628119,0.2,194.42,194.41,55.26425755]
[1761376628501,0.2,194.42,194.41,57.32319462]
[1761376630417,0.2,194.43,194.42,33.75647521]
[1761376630622,0.2,194.43,194.42,36.9661124]
[1761376631000,0.2,194.43,194.42,36.48509439]
[1761376631206,0.2,194.43,194.42,74.50473158]
[1761376631817,0.2,194.43,194.42,79.64823533]
[1761376641130,0.2,194.43,194.42,77.10859814]
[1761376641336,0.2,194.43,194.42,79.64823533]
[1761376645211,0.2,194.43,194.42,44.16823533]
[1761376645626,0.2,194.43,194.42,79.64823533]
[1761376647525,0.2,194.43,194.42,78.97823533]
[1761376648521,0.2,194.43,194.42,43.49823533]
[1761376648732,0.2,194.43,194.42,43.16314094]
[1761376649426,0.86,194.43,194.42,40.62350375]
[1761376649628,0.86,194.43,194.42,43.16314094]
[1761376652432,0.2,194.43,194.42,43.16314094]
[1761376656053,0.2,194.43,194.42,43.88314094]
[1761376656243,0.2,194.43,194.42,54.75961615]
[1761376656853,0.2,194.43,194.42,56.81844724]
[1761376658028,0.2,194.46,194.45,38.89918541]
[1761376658331,0.2,194.48,194.46,10.87647521]
[1761376658660,0.2,194.53,194.51,10.87647521]
[1761376658853,0.2,194.53,194.51,49.49022478]
[1761376659034,0.2,194.54,194.53,33.75647521]
[1761376659229,0.2,194.54,194.53,72.41017192]
[1761376659536,0.2,194.58,194.57,33.75647521]
[1761376659733,0.2,194.58,194.57,34.27042905]
[1761376659931,0.2,194.58,194.57,73.23006624]
[1761376660131,0.2,194.58,194.57,78.3696047]
[1761376660357,0.2,194.58,194.57,80.42684748]
[1761376661348,0.2,194.58,194.57,77.6496047]
[1761376661557,0.2,194.58,194.57,78.3896047]
[1761376661938,0.2,194.58,194.57,41.43565086]
[1761376662139,0.86,194.58,194.57,61.13963719]
[1761376662436,0.2,194.58,194.57,61.13963719]
[1761376665364,0.2,194.58,194.57,35.72]
[1761376665552,0.86,194.58,194.57,35.76]
[1761376666538,3.39963719,194.58,194.54,22.88]
[1761376666741,0.66,194.57,194.55,35.76]
[1761376670764,0.66,194.57,194.51,5.65508678]
[1761376670947,3.19963719,194.57,194.52,35.74]
[1761376671263,0.66,194.57,194.52,38.27963719]
[1761376671466,0.68,194.56,194.52,38.27963719]
[1761376671870,0.68,194.56,194.53,2.53963719]
[1761376672061,0.68,194.56,194.54,35.74]
[1761376674447,3.21963719,194.56,194.54,35.74]
[1761376674961,0.68,194.55,194.54,35.74]
[1761376675667,0.68,194.55,194.47,0.51421813]
[1761376675668,3.21963719,194.55,194.47,0.51421813]
[1761376675843,2.53963719,194.54,194.48,49.1561124]
[1761376676043,3.21963719,194.54,194.48,49.1561124]
[1761376676242,0.68,194.53,194.48,38.27963719]
[1761376676443,2.53963719,194.52,194.48,35.74]
[1761376676854,0.68,194.51,194.48,35.74]
[1761376677045,0.68,194.51,194.48,43.42155073]
[1761376677247,5.82073483,194.53,194.49,2.53963719]
[1761376677457,0.68,194.52,194.49,2.53963719]
[1761376678268,0.68,194.52,194.48,43.42155073]
[1761376680374,0.68,194.52,194.48,40.88191354]
[1761376681593,8.35963772,194.56,194.5,2.53963719]
[1761376681875,5.82000053,194.56,194.51,38.25963719]
[1761376682080,5.82000053,194.56,194.51,35.72]
[1761376682392,0.68,194.55,194.51,36.39]
[1761376683696,2.30433142,194.55,194.51,36.39]
[1761376683854,0.2,194.58,194.54,1.62433142]
[1761376684056,0.2,194.58,194.56,1.62433142]
[1761376684256,0.2,194.58,194.57,1.62433142]
[1761376684759,0.2,194.58,194.57,2.29433142]
[1761376685374,0.2,194.58,194.57,7.43386988]
[1761376685878,0.2,194.58,194.57,5.80953846]
[1761376686257,0.2,194.58,194.57,7.43386988]
[1761376686578,0.2,194.58,194.57,25.07265402]
[1761376686877,0.2,194.58,194.57,47.95265402]
[1761376688378,1e-08,194.58,194.57,25.07265402]
[1761376689058,1e-08,194.58,194.57,60.81265402]
[1761376692681,1e-08,194.58,194.57,25.07265402]
[1761376692863,1e-08,194.58,194.57,60.79265402]
[1761376694981,1e-08,194.58,194.57,60.81265402]
[1761376696269,1e-08,194.58,194.57,25.07265402]
[1761376696470,1e-08,194.58,194.57,60.81265402]
[1761376700585,1e-08,194.58,194.57,58.5183226]
[1761376700785,1e-08,194.58,194.57,51.73601367]
[1761376700994,0.70000001,194.58,194.57,35.72]
[1761376701201,0.70000001,194.58,194.57,40.85953846]
[1761376701373,1e-08,194.58,194.57,42.48386988]
[1761376703302,1e-08,194.58,194.57,54.58429893]
[1761376703881,1e-08,194.58,194.57,56.64164752]
[1761376712599,0.2,194.62,194.61,33.75647521]
[1761376712795,0.2,194.62,194.61,72.30465483]
[1761376713300,0.2,194.62,194.61,74.36126296]
[1761376714301,0.2,194.62,194.61,79.49974505]
[1761376715202,0.2,194.62,194.61,77.16541363]
[1761376715503,0.2,194.62,194.61,79.49974505]
[1761376718499,0.2,194.62,194.61,78.78974505]
[1761376719002,0.2,194.62,194.61,79.49974505]
[1761376719499,0.2,194.62,194.61,43.79974505]
[1761376719690,0.2,194.62,194.61,79.47974505]
[1761376720199,0.2,194.62,194.61,77.85541363]
[1761376720399,0.2,194.62,194.61,43.79974505]
[1761376720591,0.2,194.62,194.61,79.45974505]
[1761376720784,0.2,194.62,194.61,78.74974505]
[1761376721094,0.2,194.62,194.61,79.45974505]
[1761376721297,0.2,194.62,194.61,78.74974505]
[1761376723296,0.2,194.62,194.61,79.45974505]
[1761376723682,0.2,194.62,194.61,78.74974505]
[1761376724897,0.2,194.62,194.61,79.45974505]
[1761376725097,0.2,194.62,194.61,78.74974505]
[1761376725900,0.2,194.62,194.61,79.45974505]
[1761376727087,0.7,194.71,194.61,92.30595028]
[1761376727291,4.53224769,194.75,194.69,1.62433142]
[1761376727591,3.83224769,194.74,194.7,35.66]
[1761376727910,1.82433142,194.77,194.7,35.66]
[1761376728207,0.7,194.73,194.7,42.42031333]
[1761376728590,0.7,194.73,194.7,40.79598191]
[1761376729088,0.7,194.73,194.7,42.42031333]
[1761376729497,0.7,194.73,194.7,40.79598191]
[1761376729695,0.7,194.73,194.7,35.66]
[1761376730008,0.7,194.73,194.7,40.79610098]
[1761376731313,0.7,194.73,194.7,35.66]
[1761376731910,0.7,194.73,194.69,5.13633111]
[1761376732099,1.62433142,194.72,194.7,35.64]
[1761376732295,1.62433142,194.72,194.71,35.64]
[1761376732496,6.75966652,194.73,194.71,35.64]
[1761376732903,2.32433142,194.72,194.71,35.64]
[1761376733411,7.45991071,194.72,194.66,22.88]
[1761376733610,1.62433142,194.7,194.67,35.64]
[1761376733795,1.62433142,194.69,194.68,35.64]
[1761376734204,2.32433142,194.69,194.68,35.64]
[1761376735112,0.7,194.69,194.68,35.64]
[1761376740219,2.32433142,194.69,194.68,35.64]
[1761376740910,7.46070206,194.69,194.63,22.88]
[1761376741110,2.29433142,194.68,194.64,35.62]
[1761376741513,0.67,194.67,194.64,35.62]
[1761376741891,0.67,194.67,194.64,40.75757702]
[1761376742430,1.62433142,194.66,194.64,35.62]
[1761376742617,0.67,194.67,194.64,35.62]
[1761376742813,3.20566962,194.66,194.64,35.62]
[1761376743317,0.67,194.65,194.64,35.62]
[1761376744204,0.67,194.67,194.64,35.62]
[1761376745715,0.67,194.67,194.64,40.75766576]
[1761376746011,0.67,194.69,194.65,0.68]
[1761376747822,0.67,194.69,194.65,5.81742564]
[1761376748118,3.20566962,194.69,194.65,5.13742564]
[1761376748622,8.34205208,194.69,194.64,40.75767808]
[1761376748925,0.67,194.68,194.64,40.75767808]
[1761376749702,0.67,194.68,194.64,41.43767808]
[1761376750824,3.20566962,194.68,194.64,36.3]
[1761376751214,0.67,194.68,194.64,36.3]
[1761376751425,3.20566962,194.68,194.64,36.3]
[1761376752427,0.67,194.68,194.64,41.43768762]
[1761376755212,3.20566962,194.7,194.65,0.68]
[1761376756618,3.20566962,194.7,194.65,5.81724962]
[1761376757028,3.20566962,194.7,194.66,0.68]
[1761376757334,3.20566962,194.7,194.67,35.6]
[1761376758724,0.67,194.69,194.67,35.6]
[1761376759628,3.20566962,194.69,194.67,35.6]
[1761376761546,0.7,194.68,194.67,35.6]
[1761376763627,3.23566962,194.68,194.67,35.6]
[1761376764016,8.37234477,194.68,194.6,28.72851586]
[1761376764213,2.53566962,194.66,194.61,35.58]